Workbook

Sheet Naudas plūsmas pārskats
B1: Naudas plūsma Pārskats
B3: Finanšu gada sākums: | D3: Pirms sākuma/sākums | E3: =UPPER(TEXT(FinanšuGadaSākumaDatums,"mmm")) -> JAN | F3: =UPPER(TEXT(EOMONTH(FinanšuGadaSākumaDatums,1),"mmm")) -> FEB | G3: =UPPER(TEXT(EOMONTH(FinanšuGadaSākumaDatums,2),"mmm")) -> MAR | H3: =UPPER(TEXT(EOMONTH(FinanšuGadaSākumaDatums,3),"mmm")) -> APR | I3: =UPPER(TEXT(EOMONTH(FinanšuGadaSākumaDatums,4),"mmm")) -> MAI | J3: =UPPER(TEXT(EOMONTH(FinanšuGadaSākumaDatums,5),"mmm")) -> JŪN | K3: =UPPER(TEXT(EOMONTH(FinanšuGadaSākumaDatums,6),"mmm")) -> JŪL | L3: =UPPER(TEXT(EOMONTH(FinanšuGadaSākumaDatums,7),"mmm")) -> AUG | M3: =UPPER(TEXT(EOMONTH(FinanšuGadaSākumaDatums,8),"mmm")) -> SEP | N3: =UPPER(TEXT(EOMONTH(FinanšuGadaSākumaDatums,9),"mmm")) -> OKT | O3: =UPPER(TEXT(EOMONTH(FinanšuGadaSākumaDatums,10),"mmm")) -> NOV | P3: =UPPER(TEXT(EOMONTH(FinanšuGadaSākumaDatums,11),"mmm")) -> DEC | R3: Kopā
B4: 2012-01-05 | D4: APR. | E4: =FinanšuGadaSākumaDatums -> 2012-01-05 | F4: =EOMONTH(E4,0)+DAY(FinanšuGadaSākumaDatums) -> 2012-02-05 | G4: =EOMONTH(F4,0)+DAY(FinanšuGadaSākumaDatums) -> 2012-03-05 | H4: =EOMONTH(G4,0)+DAY(FinanšuGadaSākumaDatums) -> 2012-04-05 | I4: =EOMONTH(H4,0)+DAY(FinanšuGadaSākumaDatums) -> 2012-05-05 | J4: =EOMONTH(I4,0)+DAY(FinanšuGadaSākumaDatums) -> 2012-06-05 | K4: =EOMONTH(J4,0)+DAY(FinanšuGadaSākumaDatums) -> 2012-07-05 | L4: =EOMONTH(K4,0)+DAY(FinanšuGadaSākumaDatums) -> 2012-08-05 | M4: =EOMONTH(L4,0)+DAY(FinanšuGadaSākumaDatums) -> 2012-09-05 | N4: =EOMONTH(M4,0)+DAY(FinanšuGadaSākumaDatums) -> 2012-10-05 | O4: =EOMONTH(N4,0)+DAY(FinanšuGadaSākumaDatums) -> 2012-11-05 | P4: =EOMONTH(O4,0)+DAY(FinanšuGadaSākumaDatums) -> 2012-12-05 | R4: Apr. pozīcija
B6: Kases apgrozāmie līdzekļi (mēneša sākumā) | D6: 100 | E6: =D50 -> 100 | F6: -125 | G6: 45 | H6: -1 | I6: 224 | J6: 269 | K6: 269 | L6: 269 | M6: 269 | N6: 269 | O6: 269 | P6: 269 | R6: =P6 -> 269
B8: Naudas ieņēmumi
B9: Pārdošana par skaidru naudu | E9: 125 | F9: 120 | G9: 130 | H9: 100 | R9: =SUM(NaudasIeņēmumi[[#This Row],[Periods 0]:[Periods 12]]) -> 475
B10: Ieņēmumi no kredītkontiem | H10: 75 | I10: 45 | R10: =SUM(NaudasIeņēmumi[[#This Row],[Periods 0]:[Periods 12]]) -> 120
B11: Aizdevumi/citi kapitāla ieguldījumi | E11: 50 | F11: 50 | G11: 50 | H11: 50 | R11: =SUM(NaudasIeņēmumi[[#This Row],[Periods 0]:[Periods 12]]) -> 200
B12: Kopā | D12: =SUBTOTAL(109,NaudasIeņēmumi[Periods 0]) -> 0 | E12: =SUBTOTAL(109,NaudasIeņēmumi[Periods 1]) -> 175 | F12: =SUBTOTAL(109,NaudasIeņēmumi[Periods 2]) -> 170 | G12: =SUBTOTAL(109,NaudasIeņēmumi[Periods 3]) -> 180 | H12: =SUBTOTAL(109,NaudasIeņēmumi[Periods 4]) -> 225 | I12: =SUBTOTAL(109,NaudasIeņēmumi[Periods 5]) -> 45 | J12: =SUBTOTAL(109,NaudasIeņēmumi[Periods 6]) -> 0 | K12: =SUBTOTAL(109,NaudasIeņēmumi[Periods 7]) -> 0 | L12: =SUBTOTAL(109,NaudasIeņēmumi[Periods 8]) -> 0 | M12: =SUBTOTAL(109,NaudasIeņēmumi[Periods 9]) -> 0 | N12: =SUBTOTAL(109,NaudasIeņēmumi[Periods 10]) -> 0 | O12: =SUBTOTAL(109,NaudasIeņēmumi[Periods 11]) -> 0 | P12: =SUBTOTAL(109,NaudasIeņēmumi[Periods 12]) -> 0
B13: Kopējie pieejamie naudas līdzekļi (pirms skaidras naudas trūkuma) | D13: =D6+SUM(NaudasIeņēmumi[Periods 0]) -> 100 | E13: =E6+SUM(NaudasIeņēmumi[Periods 1]) -> 275 | F13: =F6+SUM(NaudasIeņēmumi[Periods 2]) -> 45 | G13: =G6+SUM(NaudasIeņēmumi[Periods 3]) -> 225 | H13: =H6+SUM(NaudasIeņēmumi[Periods 4]) -> 224 | I13: =I6+SUM(NaudasIeņēmumi[Periods 5]) -> 269 | J13: =J6+SUM(NaudasIeņēmumi[Periods 6]) -> 269 | K13: =K6+SUM(NaudasIeņēmumi[Periods 7]) -> 269 | L13: =L6+SUM(NaudasIeņēmumi[Periods 8]) -> 269 | M13: =M6+SUM(NaudasIeņēmumi[Periods 9]) -> 269 | N13: =N6+SUM(NaudasIeņēmumi[Periods 10]) -> 269 | O13: =O6+SUM(NaudasIeņēmumi[Periods 11]) -> 269 | P13: =P6+SUM(NaudasIeņēmumi[Periods 12]) -> 269 | R13: =R6+SUM(NaudasIeņēmumi[Total]) -> 1064
B16: Izmaksātā nauda
B17: Pirkumi (tirdzniecība) | E17: 400 | G17: 226 | R17: =SUM(IzmaksātaNauda[[#This Row],[Periods 0]:[Periods 12]]) -> 626
B18: Pirkumi (norādīt) | R18: =SUM(IzmaksātaNauda[[#This Row],[Periods 0]:[Periods 12]]) -> 0
B19: Pirkumi (norādīt) | R19: =SUM(IzmaksātaNauda[[#This Row],[Periods 0]:[Periods 12]]) -> 0
B20: Bruto darba alga (precīza izņemšana) | R20: =SUM(IzmaksātaNauda[[#This Row],[Periods 0]:[Periods 12]]) -> 0
B21: Algu fonda izdevumi (nodokļi utt.) | R21: =SUM(IzmaksātaNauda[[#This Row],[Periods 0]:[Periods 12]]) -> 0
B22: Ārpakalpojumi | R22: =SUM(IzmaksātaNauda[[#This Row],[Periods 0]:[Periods 12]]) -> 0
B23: Krājumi (birojs un vadīšana) | R23: =SUM(IzmaksātaNauda[[#This Row],[Periods 0]:[Periods 12]]) -> 0
B24: Remonts un apkope | R24: =SUM(IzmaksātaNauda[[#This Row],[Periods 0]:[Periods 12]]) -> 0
B25: Reklamēšana | R25: =SUM(IzmaksātaNauda[[#This Row],[Periods 0]:[Periods 12]]) -> 0
B26: Automašīnas, piegāde un ceļojumi | R26: =SUM(IzmaksātaNauda[[#This Row],[Periods 0]:[Periods 12]]) -> 0
B27: Grāmatvedība un juridiskie pakalpojumi | R27: =SUM(IzmaksātaNauda[[#This Row],[Periods 0]:[Periods 12]]) -> 0
B28: Īre | R28: =SUM(IzmaksātaNauda[[#This Row],[Periods 0]:[Periods 12]]) -> 0
B29: Tālrunis | R29: =SUM(IzmaksātaNauda[[#This Row],[Periods 0]:[Periods 12]]) -> 0
B30: Aprīkojums | R30: =SUM(IzmaksātaNauda[[#This Row],[Periods 0]:[Periods 12]]) -> 0
B31: Apdrošināšana | R31: =SUM(IzmaksātaNauda[[#This Row],[Periods 0]:[Periods 12]]) -> 0
B32: Nodokļi (nekustamais īpašums utt.) | R32: =SUM(IzmaksātaNauda[[#This Row],[Periods 0]:[Periods 12]]) -> 0
B33: Procenti | R33: =SUM(IzmaksātaNauda[[#This Row],[Periods 0]:[Periods 12]]) -> 0
B34: Citi izdevumi (norādīt) | R34: =SUM(IzmaksātaNauda[[#This Row],[Periods 0]:[Periods 12]]) -> 0
B35: Cits (norādīt) | R35: =SUM(IzmaksātaNauda[[#This Row],[Periods 0]:[Periods 12]]) -> 0
B36: Cits (norādīt) | R36: =SUM(IzmaksātaNauda[[#This Row],[Periods 0]:[Periods 12]]) -> 0
B37: Dažādi | R37: =SUM(IzmaksātaNauda[[#This Row],[Periods 0]:[Periods 12]]) -> 0
B38: Kopā | D38: =SUBTOTAL(109,IzmaksātaNauda[Periods 0]) -> 0 | E38: =SUBTOTAL(109,IzmaksātaNauda[Periods 1]) -> 400 | F38: =SUBTOTAL(109,IzmaksātaNauda[Periods 2]) -> 0 | G38: =SUBTOTAL(109,IzmaksātaNauda[Periods 3]) -> 226 | H38: =SUBTOTAL(109,IzmaksātaNauda[Periods 4]) -> 0 | I38: =SUBTOTAL(109,IzmaksātaNauda[Periods 5]) -> 0 | J38: =SUBTOTAL(109,IzmaksātaNauda[Periods 6]) -> 0 | K38: =SUBTOTAL(109,IzmaksātaNauda[Periods 7]) -> 0 | L38: =SUBTOTAL(109,IzmaksātaNauda[Periods 8]) -> 0 | M38: =SUBTOTAL(109,IzmaksātaNauda[Periods 9]) -> 0 | N38: =SUBTOTAL(109,IzmaksātaNauda[Periods 10]) -> 0 | O38: =SUBTOTAL(109,IzmaksātaNauda[Periods 11]) -> 0 | P38: =SUBTOTAL(109,IzmaksātaNauda[Periods 4]) -> 0 | R38: =SUBTOTAL(109,IzmaksātaNauda[Periods 6]) -> 0
B41: Izmaksātā nauda (bez P/Z)
B42: Kredīta pamatsummas maksājums | R42: =SUM(IzmaksātaNauda2[[#This Row],[Periods 0]:[Periods 12]]) -> 0
B43: Kapitāla iegāde (norādīt) | R43: =SUM(IzmaksātaNauda2[[#This Row],[Periods 0]:[Periods 12]]) -> 0
B44: Citas sākotnējās izmaksas | R44: =SUM(IzmaksātaNauda2[[#This Row],[Periods 0]:[Periods 12]]) -> 0
B45: Rezerve un/vai noguldījums | R45: =SUM(IzmaksātaNauda2[[#This Row],[Periods 0]:[Periods 12]]) -> 0
B46: Īpašnieka izņemšana | R46: =SUM(IzmaksātaNauda2[[#This Row],[Periods 0]:[Periods 12]]) -> 0
B47: Kopā | D47: =SUBTOTAL(109,IzmaksātaNauda2[Periods 0]) -> 0 | E47: =SUBTOTAL(109,IzmaksātaNauda2[Periods 1]) -> 0 | F47: =SUBTOTAL(109,IzmaksātaNauda2[Periods 2]) -> 0 | G47: =SUBTOTAL(109,IzmaksātaNauda2[Periods 3]) -> 0 | H47: =SUBTOTAL(109,IzmaksātaNauda2[Periods 4]) -> 0 | I47: =SUBTOTAL(109,IzmaksātaNauda2[Periods 5]) -> 0 | J47: =SUBTOTAL(109,IzmaksātaNauda2[Periods 1]) -> 0 | K47: =SUBTOTAL(109,IzmaksātaNauda2[Periods 2]) -> 0 | L47: =SUBTOTAL(109,IzmaksātaNauda2[Periods 3]) -> 0 | M47: =SUBTOTAL(109,IzmaksātaNauda2[Periods 4]) -> 0 | N47: =SUBTOTAL(109,IzmaksātaNauda2[Periods 5]) -> 0 | O47: =SUBTOTAL(109,IzmaksātaNauda2[Periods 6]) -> 0 | P47: =SUBTOTAL(109,IzmaksātaNauda2[Periods 2]) -> 0 | R47: =SUBTOTAL(109,IzmaksātaNauda2[Total]) -> 0
B48: Kopējā izmaksātā nauda | D48: =SUM(IzmaksātaNauda[Periods 0],IzmaksātaNauda2[Periods 0]) -> 0 | E48: =SUM(IzmaksātaNauda[Periods 1],IzmaksātaNauda2[Periods 1]) -> 400 | F48: =SUM(IzmaksātaNauda[Periods 2],IzmaksātaNauda2[Periods 2]) -> 0 | G48: =SUM(IzmaksātaNauda[Periods 3],IzmaksātaNauda2[Periods 3]) -> 226 | H48: =SUM(IzmaksātaNauda[Periods 4],IzmaksātaNauda2[Periods 4]) -> 0 | I48: =SUM(IzmaksātaNauda[Periods 5],IzmaksātaNauda2[Periods 5]) -> 0 | J48: =SUM(IzmaksātaNauda[Periods 6],IzmaksātaNauda2[Periods 6]) -> 0 | K48: =SUM(IzmaksātaNauda[Periods 7],IzmaksātaNauda2[Periods 7]) -> 0 | L48: =SUM(IzmaksātaNauda[Periods 8],IzmaksātaNauda2[Periods 8]) -> 0 | M48: =SUM(IzmaksātaNauda[Periods 9],IzmaksātaNauda2[Periods 9]) -> 0 | N48: =SUM(IzmaksātaNauda[Periods 10],IzmaksātaNauda2[Periods 10]) -> 0 | O48: =SUM(IzmaksātaNauda[Periods 11],IzmaksātaNauda2[Periods 11]) -> 0 | P48: =SUM(IzmaksātaNauda[Periods 12],IzmaksātaNauda2[Periods 12]) -> 0 | R48: =SUM(IzmaksātaNauda[Total],IzmaksātaNauda2[Total]) -> 626
B50: Kases atlikums (mēneša beigās) | D50: =D13-D48 -> 100 | E50: -125 | F50: 45 | G50: -1 | H50: 224 | I50: 269 | J50: 269 | K50: 269 | L50: 269 | M50: 269 | N50: 269 | O50: 269 | P50: 269 | R50: =R13-R48 -> 438
